[Event "Betsys MČR v online bleskovém šachu 2021"]
[Site "Chess.com"]
[Date "2021.04.17"]
[Round "13"]
[White "TarantAnk"]
[Black "marfuss"]
[Result "1-0"]
[WhiteElo "1745"]
[BlackElo "1923"]
[TimeControl "180+1"]
[EndTime "11:11:18 PDT"]
[Termination "Uživatel TarantAnk zvítězil na čas"]

1. e4 {[%clk 0:03:00.9]} 1... e5 {[%clk 0:02:57.7]} 2. Nf3 {[%clk 0:03:01.3]}
2... Nf6 {[%clk 0:02:57.8]} 3. Bc4 {[%clk 0:03:01.8]} 3... Nxe4 {[%clk
0:02:57.4]} 4. d4 {[%clk 0:02:58.8]} 4... d5 {[%clk 0:02:57.1]} 5. Bb3 {[%clk
0:02:55.7]} 5... Be7 {[%clk 0:02:50.3]} 6. dxe5 {[%clk 0:02:54.3]} 6... O-O
{[%clk 0:02:49.5]} 7. Qxd5 {[%clk 0:02:51.2]} 7... Qxd5 {[%clk 0:02:39.8]} 8.
Bxd5 {[%clk 0:02:50.8]} 8... Nc5 {[%clk 0:02:37.6]} 9. Nc3 {[%clk 0:02:46.7]}
9... c6 {[%clk 0:02:35.5]} 10. Bc4 {[%clk 0:02:41]} 10... Bf5 {[%clk 0:02:33.6]}
11. Nd4 {[%clk 0:02:31.6]} 11... Bg6 {[%clk 0:02:08.5]} 12. f4 {[%clk
0:02:21.8]} 12... Nbd7 {[%clk 0:01:40.4]} 13. Be3 {[%clk 0:02:00.1]} 13... Nb6
{[%clk 0:01:25.5]} 14. Be2 {[%clk 0:01:51.8]} 14... Ne4 {[%clk 0:01:18.1]} 15.
Nxe4 {[%clk 0:01:46.9]} 15... Bxe4 {[%clk 0:01:18.1]} 16. Bf3 {[%clk 0:01:46.8]}
16... Bxf3 {[%clk 0:01:11.8]} 17. Nxf3 {[%clk 0:01:46.1]} 17... Nd5 {[%clk
0:01:12.3]} 18. Bd2 {[%clk 0:01:39.9]} 18... Bc5 {[%clk 0:01:07.6]} 19. O-O-O
{[%clk 0:01:38.7]} 19... Rfd8 {[%clk 0:00:57.9]} 20. g3 {[%clk 0:01:31.6]} 20...
Rd7 {[%clk 0:00:54.1]} 21. Bc3 {[%clk 0:01:26.5]} 21... Rad8 {[%clk 0:00:49.3]}
22. Rd3 {[%clk 0:01:13.7]} 22... Nxc3 {[%clk 0:00:28.9]} 23. Rxc3 {[%clk
0:01:12.9]} 23... Bb4 {[%clk 0:00:25.8]} 24. Rb3 {[%clk 0:01:10.2]} 24... Ba5
{[%clk 0:00:21.7]} 25. c4 {[%clk 0:01:03.5]} 25... Bb6 {[%clk 0:00:18.7]} 26.
Re1 {[%clk 0:01:00.7]} 26... Rd3 {[%clk 0:00:16.9]} 27. Rxd3 {[%clk 0:00:45.2]}
27... Rxd3 {[%clk 0:00:17.8]} 28. Ng5 {[%clk 0:00:44.8]} 28... h6 {[%clk
0:00:16.7]} 29. Ne4 {[%clk 0:00:44.4]} 29... Rd4 {[%clk 0:00:12.7]} 30. b3
{[%clk 0:00:42.4]} 30... Bc5 {[%clk 0:00:11.3]} 31. Re2 {[%clk 0:00:42.2]} 31...
Kf8 {[%clk 0:00:09.9]} 32. Kc2 {[%clk 0:00:42]} 32... Ke7 {[%clk 0:00:09.9]} 33.
Kc3 {[%clk 0:00:42.1]} 33... Ke6 {[%clk 0:00:09.1]} 34. b4 {[%clk 0:00:41.6]}
34... Bb6 {[%clk 0:00:06.7]} 35. c5 {[%clk 0:00:41.5]} 35... Bxc5 {[%clk
0:00:06.2]} 36. bxc5 {[%clk 0:00:41]} 36... Ra4 {[%clk 0:00:06]} 37. Kb3 {[%clk
0:00:39.3]} 37... Rd4 {[%clk 0:00:04.6]} 38. Nd6 {[%clk 0:00:38.3]} 38... b6
{[%clk 0:00:03.6]} 39. cxb6 {[%clk 0:00:37.1]} 39... axb6 {[%clk 0:00:04.5]} 40.
a4 {[%clk 0:00:35]} 40... c5 {[%clk 0:00:04.6]} 41. Re3 {[%clk 0:00:32.2]} 41...
Kd5 {[%clk 0:00:04.7]} 42. h4 {[%clk 0:00:31.4]} 42... c4+ {[%clk 0:00:03.7]}
43. Kc3 {[%clk 0:00:30.3]} 43... Rd1 {[%clk 0:00:01.4]} 44. Nxf7 {[%clk
0:00:27.7]} 1-0

[Event "Betsys MČR v online bleskovém šachu 2021"]
[Site "Chess.com"]
[Date "2021.04.17"]
[Round "13"]
[White "Klapuch05"]
[Black "rakintsev"]
[Result "1-0"]
[WhiteElo "1601"]
[BlackElo "1719"]
[TimeControl "180+1"]
[EndTime "11:11:19 PDT"]
[Termination "Uživatel Klapuch05 zvítězil na čas"]

1. e4 {[%clk 0:03:00.9]} 1... c6 {[%clk 0:02:59.4]} 2. d4 {[%clk 0:03:00]} 2...
d5 {[%clk 0:02:59.1]} 3. exd5 {[%clk 0:03:00.9]} 3... cxd5 {[%clk 0:02:58.8]} 4.
c4 {[%clk 0:03:01.6]} 4... Nf6 {[%clk 0:02:56.1]} 5. Nc3 {[%clk 0:02:59.7]} 5...
Bf5 {[%clk 0:02:53.8]} 6. Nf3 {[%clk 0:02:57.2]} 6... e6 {[%clk 0:02:52.6]} 7.
Bd3 {[%clk 0:02:55.1]} 7... Bg6 {[%clk 0:02:51.4]} 8. c5 {[%clk 0:02:52.9]} 8...
Be7 {[%clk 0:02:50]} 9. O-O {[%clk 0:02:50.9]} 9... Nc6 {[%clk 0:02:49.8]} 10.
Be3 {[%clk 0:02:44.8]} 10... a6 {[%clk 0:02:49.4]} 11. a3 {[%clk 0:02:42.4]}
11... Ng4 {[%clk 0:02:40.8]} 12. Bf4 {[%clk 0:02:39]} 12... Nf6 {[%clk
0:02:35.1]} 13. Re1 {[%clk 0:02:32.9]} 13... h6 {[%clk 0:02:32.6]} 14. h3 {[%clk
0:02:32.2]} 14... h5 {[%clk 0:02:30.6]} 15. Ne2 {[%clk 0:02:24.9]} 15... Be4
{[%clk 0:01:56.1]} 16. Bxe4 {[%clk 0:02:19.7]} 16... Nxe4 {[%clk 0:01:55.1]} 17.
Ne5 {[%clk 0:02:14]} 17... g5 {[%clk 0:01:49.1]} 18. Nxc6 {[%clk 0:02:11.5]}
18... bxc6 {[%clk 0:01:47.4]} 19. Bh2 {[%clk 0:02:02.6]} 19... g4 {[%clk
0:01:43.4]} 20. Nf4 {[%clk 0:01:58.5]} 20... gxh3 {[%clk 0:01:41.4]} 21. Nxh3
{[%clk 0:01:53.7]} 21... Bh4 {[%clk 0:01:37.4]} 22. Re3 {[%clk 0:01:46.5]} 22...
Rg8 {[%clk 0:01:26.7]} 23. Qxh5 {[%clk 0:01:38.8]} 23... Qe7 {[%clk 0:00:56.5]}
24. Bd6 {[%clk 0:01:27.2]} 24... Qd7 {[%clk 0:00:49.7]} 25. Qxh4 {[%clk
0:01:25.2]} 25... Nxd6 {[%clk 0:00:22.5]} 26. cxd6 {[%clk 0:01:24.2]} 26... Qxd6
{[%clk 0:00:22.8]} 27. Rc1 {[%clk 0:01:20.7]} 27... Kd7 {[%clk 0:00:21.6]} 28.
Qf4 {[%clk 0:01:17.4]} 28... Qe7 {[%clk 0:00:20.3]} 29. Rec3 {[%clk 0:01:11.4]}
29... Rac8 {[%clk 0:00:19.4]} 30. R1c2 {[%clk 0:01:07.6]} 30... Rg6 {[%clk
0:00:19]} 31. Qc1 {[%clk 0:01:06.4]} 31... Qd6 {[%clk 0:00:17.4]} 32. Rc5 {[%clk
0:01:03.4]} 32... e5 {[%clk 0:00:16.3]} 33. Qd2 {[%clk 0:00:56.2]} 33... e4
{[%clk 0:00:16]} 34. Qf4 {[%clk 0:00:54.8]} 34... Rf6 {[%clk 0:00:15.1]} 35.
Qxd6+ {[%clk 0:00:54.5]} 35... Rxd6 {[%clk 0:00:15.2]} 36. Ng5 {[%clk
0:00:51.4]} 36... Rf6 {[%clk 0:00:14]} 37. b4 {[%clk 0:00:49.7]} 37... Rf5
{[%clk 0:00:13.9]} 38. Nh3 {[%clk 0:00:48.7]} 38... Rf6 {[%clk 0:00:12.4]} 39.
a4 {[%clk 0:00:48.6]} 39... Rg6 {[%clk 0:00:12.3]} 40. b5 {[%clk 0:00:47.9]}
40... axb5 {[%clk 0:00:12.4]} 41. axb5 {[%clk 0:00:47.8]} 41... Rcg8 {[%clk
0:00:09.5]} 42. bxc6+ {[%clk 0:00:47.2]} 42... Kc7 {[%clk 0:00:09.4]} 43. g3
{[%clk 0:00:47.5]} 43... e3 {[%clk 0:00:06.5]} 44. Nf4 {[%clk 0:00:46.2]} 44...
exf2+ {[%clk 0:00:05.8]} 45. Kxf2 {[%clk 0:00:46.4]} 45... Rxg3 {[%clk
0:00:05.7]} 46. Nxd5+ {[%clk 0:00:46.6]} 46... Kc8 {[%clk 0:00:04.2]} 47. Ne7+
{[%clk 0:00:44]} 47... Kc7 {[%clk 0:00:02.8]} 48. Nxg8 {[%clk 0:00:44.2]} 48...
Rxg8 {[%clk 0:00:03.3]} 49. d5 {[%clk 0:00:44.7]} 1-0

[Event "Betsys MČR v online bleskovém šachu 2021"]
[Site "Chess.com"]
[Date "2021.04.17"]
[Round "13"]
[White "Drak1961"]
[Black "zdenav"]
[Result "1-0"]
[WhiteElo "2089"]
[BlackElo "1865"]
[TimeControl "180+1"]
[EndTime "11:11:20 PDT"]
[Termination "Uživatel Drak1961 zvítězil na čas"]

1. d4 {[%clk 0:02:59.7]} 1... d5 {[%clk 0:02:59.1]} 2. Nf3 {[%clk 0:02:59.6]}
2... e6 {[%clk 0:02:59.1]} 3. g3 {[%clk 0:02:59.5]} 3... Nf6 {[%clk 0:02:59.1]}
4. Bg2 {[%clk 0:02:59.2]} 4... c5 {[%clk 0:02:58.8]} 5. O-O {[%clk 0:02:58.3]}
5... Nc6 {[%clk 0:02:56.6]} 6. c4 {[%clk 0:02:57.9]} 6... cxd4 {[%clk
0:02:54.3]} 7. Nxd4 {[%clk 0:02:50]} 7... Nxd4 {[%clk 0:02:54.2]} 8. Qxd4 {[%clk
0:02:48.7]} 8... dxc4 {[%clk 0:02:53]} 9. Qxc4 {[%clk 0:02:45.5]} 9... Be7
{[%clk 0:02:51.3]} 10. Nc3 {[%clk 0:02:44.2]} 10... O-O {[%clk 0:02:49.8]} 11.
Be3 {[%clk 0:02:36.1]} 11... Qa5 {[%clk 0:02:39.5]} 12. a3 {[%clk 0:02:32.3]}
12... Nd7 {[%clk 0:02:28.8]} 13. b4 {[%clk 0:02:30.7]} 13... Qh5 {[%clk
0:02:21.8]} 14. Bf3 {[%clk 0:02:20.3]} 14... Qg6 {[%clk 0:02:20.3]} 15. Nb5
{[%clk 0:02:16.6]} 15... Ne5 {[%clk 0:02:17.8]} 16. Qe4 {[%clk 0:01:57.6]} 16...
Nxf3+ {[%clk 0:02:15.6]} 17. exf3 {[%clk 0:01:45.1]} 17... Bd7 {[%clk
0:02:12.9]} 18. Nxa7 {[%clk 0:01:37.3]} 18... Qh5 {[%clk 0:02:02.3]} 19. Qxb7
{[%clk 0:01:32.9]} 19... Rfd8 {[%clk 0:02:01.1]} 20. Rfd1 {[%clk 0:01:20.8]}
20... Rab8 {[%clk 0:01:58.2]} 21. Qe4 {[%clk 0:01:11.9]} 21... Ba4 {[%clk
0:01:54.8]} 22. Rxd8+ {[%clk 0:01:09.4]} 22... Rxd8 {[%clk 0:01:48.1]} 23. Nc6
{[%clk 0:01:08.5]} 23... Bf6 {[%clk 0:01:29.9]} 24. Nxd8 {[%clk 0:01:00.2]}
24... Bxa1 {[%clk 0:01:28.5]} 25. Qa8 {[%clk 0:00:59.7]} 25... h6 {[%clk
0:01:15.1]} 26. Qxa4 {[%clk 0:00:58.3]} 26... Kh7 {[%clk 0:01:13.2]} 27. Qd7
{[%clk 0:00:53]} 27... Qxf3 {[%clk 0:01:11.2]} 28. Qxf7 {[%clk 0:00:51]} 28...
Qd1+ {[%clk 0:01:09.1]} 29. Kg2 {[%clk 0:00:48.7]} 29... Qxd8 {[%clk 0:01:07.7]}
30. Qb7 {[%clk 0:00:46.8]} 30... Qd3 {[%clk 0:01:00.5]} 31. a4 {[%clk 0:00:46]}
31... Bc3 {[%clk 0:00:52.1]} 32. a5 {[%clk 0:00:45.5]} 32... h5 {[%clk
0:00:41.7]} 33. a6 {[%clk 0:00:45.3]} 33... h4 {[%clk 0:00:41]} 34. gxh4 {[%clk
0:00:44.1]} 34... Qg6+ {[%clk 0:00:39.5]} 35. Kf1 {[%clk 0:00:39.2]} 35... Qb1+
{[%clk 0:00:38]} 36. Ke2 {[%clk 0:00:37.7]} 36... Qc2+ {[%clk 0:00:37.6]} 37.
Kf3 {[%clk 0:00:35.6]} 37... Qf5+ {[%clk 0:00:36.9]} 38. Bf4 {[%clk 0:00:34.6]}
38... Qh3+ {[%clk 0:00:27.2]} 39. Ke2 {[%clk 0:00:31.4]} 39... Qxh4 {[%clk
0:00:18.6]} 40. Qe4+ {[%clk 0:00:30.6]} 40... g6 {[%clk 0:00:17.6]} 41. a7
{[%clk 0:00:29.8]} 41... Qh5+ {[%clk 0:00:10.6]} 42. Kd3 {[%clk 0:00:26.9]}
42... Bxb4 {[%clk 0:00:04.2]} 43. Qb7+ {[%clk 0:00:25.2]} 1-0

[Event "Betsys MČR v online bleskovém šachu 2021"]
[Site "Chess.com"]
[Date "2021.04.17"]
[Round "13"]
[White "FaceOfLightning"]
[Black "nw_tynka"]
[Result "1/2-1/2"]
[WhiteElo "1959"]
[BlackElo "2168"]
[TimeControl "180+1"]
[EndTime "11:11:20 PDT"]
[Termination "Remíza opakováním pozice"]

1. Nf3 {[%clk 0:03:00.9]} 1... c5 {[%clk 0:02:59]} 2. c4 {[%clk 0:02:56.6]} 2...
Nc6 {[%clk 0:02:59.2]} 3. Nc3 {[%clk 0:02:56.4]} 3... g6 {[%clk 0:02:58.5]} 4.
g3 {[%clk 0:02:55.9]} 4... Bg7 {[%clk 0:02:58.6]} 5. Bg2 {[%clk 0:02:56]} 5...
d6 {[%clk 0:02:58.2]} 6. O-O {[%clk 0:02:55]} 6... Nh6 {[%clk 0:02:56.4]} 7. d3
{[%clk 0:02:53.6]} 7... O-O {[%clk 0:02:54]} 8. e4 {[%clk 0:02:52.1]} 8... e5
{[%clk 0:02:46.8]} 9. h3 {[%clk 0:02:50.9]} 9... f5 {[%clk 0:02:45.3]} 10. Bg5
{[%clk 0:02:48.1]} 10... Qd7 {[%clk 0:02:25.5]} 11. Nd5 {[%clk 0:02:39]} 11...
Nf7 {[%clk 0:02:08.5]} 12. Be3 {[%clk 0:02:28.8]} 12... Ne7 {[%clk 0:02:02.2]}
13. Qd2 {[%clk 0:02:22.1]} 13... Nxd5 {[%clk 0:01:59.8]} 14. cxd5 {[%clk
0:02:21.2]} 14... b6 {[%clk 0:01:57.5]} 15. Ng5 {[%clk 0:02:20.2]} 15... Nxg5
{[%clk 0:01:51]} 16. Bxg5 {[%clk 0:02:19.5]} 16... Qf7 {[%clk 0:01:41]} 17. Kh2
{[%clk 0:02:07]} 17... f4 {[%clk 0:01:38.2]} 18. gxf4 {[%clk 0:01:50.9]} 18...
exf4 {[%clk 0:01:37.2]} 19. f3 {[%clk 0:01:47.5]} 19... h6 {[%clk 0:01:33.3]}
20. Bh4 {[%clk 0:01:47]} 20... g5 {[%clk 0:01:28.2]} 21. Bf2 {[%clk 0:01:45.9]}
21... Be5 {[%clk 0:01:22.3]} 22. Kh1 {[%clk 0:01:33.7]} 22... Qf6 {[%clk
0:01:19.8]} 23. d4 {[%clk 0:01:24.7]} 23... cxd4 {[%clk 0:01:14.5]} 24. Rad1
{[%clk 0:01:23.7]} 24... Ba6 {[%clk 0:01:12.3]} 25. Rg1 {[%clk 0:01:20.1]} 25...
d3 {[%clk 0:01:03.6]} 26. Bf1 {[%clk 0:01:09.8]} 26... Bxb2 {[%clk 0:00:58.2]}
27. Bxd3 {[%clk 0:01:08.9]} 27... Bxd3 {[%clk 0:00:52.8]} 28. Qxd3 {[%clk
0:01:08.3]} 28... Rac8 {[%clk 0:00:44.1]} 29. Bd4 {[%clk 0:00:51.6]} 29... Bxd4
{[%clk 0:00:42.4]} 30. Qxd4 {[%clk 0:00:51.3]} 30... Qxd4 {[%clk 0:00:41]} 31.
Rxd4 {[%clk 0:00:51.2]} 31... Rc3 {[%clk 0:00:34.8]} 32. h4 {[%clk 0:00:34]}
32... Rxf3 {[%clk 0:00:20]} 33. hxg5 {[%clk 0:00:33.7]} 33... hxg5 {[%clk
0:00:19.8]} 34. Rxg5+ {[%clk 0:00:32.8]} 34... Kf7 {[%clk 0:00:19.7]} 35. Ra4
{[%clk 0:00:32.3]} 35... a5 {[%clk 0:00:15.6]} 36. Rc4 {[%clk 0:00:29.7]} 36...
Rf2 {[%clk 0:00:12.8]} 37. Rc7+ {[%clk 0:00:26.7]} 37... Ke8 {[%clk 0:00:11.7]}
38. Rgg7 {[%clk 0:00:26.4]} 38... Rh8+ {[%clk 0:00:08.9]} 39. Kg1 {[%clk
0:00:26.5]} 39... Rxa2 {[%clk 0:00:07.5]} 40. Rge7+ {[%clk 0:00:25.5]} 40... Kd8
{[%clk 0:00:06.1]} 41. Red7+ {[%clk 0:00:25.4]} 41... Ke8 {[%clk 0:00:05.5]} 42.
Re7+ {[%clk 0:00:25.6]} 42... Kd8 {[%clk 0:00:05.1]} 43. Red7+ {[%clk
0:00:25.8]} 43... Ke8 {[%clk 0:00:05]} 44. Re7+ {[%clk 0:00:25.8]} 1/2-1/2

[Event "Betsys MČR v online bleskovém šachu 2021"]
[Site "Chess.com"]
[Date "2021.04.17"]
[Round "13"]
[White "ReceptiveYoyo"]
[Black "doktorovak"]
[Result "0-1"]
[WhiteElo "1374"]
[BlackElo "1683"]
[TimeControl "180+1"]
[EndTime "11:11:20 PDT"]
[Termination "Uživatel doktorovak zvítězil na čas"]

1. d4 {[%clk 0:03:00.9]} 1... d5 {[%clk 0:02:59.5]} 2. c4 {[%clk 0:03:00.8]}
2... e6 {[%clk 0:02:59.4]} 3. e3 {[%clk 0:03:00.9]} 3... Nf6 {[%clk 0:02:59]} 4.
Nf3 {[%clk 0:03:01.2]} 4... Bb4+ {[%clk 0:02:57.9]} 5. Bd2 {[%clk 0:03:00.9]}
5... Bxd2+ {[%clk 0:02:57.3]} 6. Nbxd2 {[%clk 0:03:01.8]} 6... dxc4 {[%clk
0:02:56.1]} 7. Bxc4 {[%clk 0:03:01.1]} 7... O-O {[%clk 0:02:56.2]} 8. Qc2 {[%clk
0:03:00.6]} 8... h6 {[%clk 0:02:54.8]} 9. O-O {[%clk 0:03:00]} 9... b6 {[%clk
0:02:54.7]} 10. Ne4 {[%clk 0:02:58]} 10... Bb7 {[%clk 0:02:53.4]} 11. Nxf6+
{[%clk 0:02:51.9]} 11... Qxf6 {[%clk 0:02:53.1]} 12. Be2 {[%clk 0:02:51.5]}
12... Qe7 {[%clk 0:02:47.9]} 13. Rac1 {[%clk 0:02:41.9]} 13... c6 {[%clk
0:02:47.2]} 14. Bd3 {[%clk 0:02:32.3]} 14... Nd7 {[%clk 0:02:45.1]} 15. Bh7+
{[%clk 0:02:31.9]} 15... Kh8 {[%clk 0:02:44.2]} 16. Bd3 {[%clk 0:02:32.2]} 16...
Rac8 {[%clk 0:02:42.1]} 17. Be2 {[%clk 0:02:21.2]} 17... c5 {[%clk 0:02:41.2]}
18. Qd3 {[%clk 0:02:12.8]} 18... cxd4 {[%clk 0:02:37.4]} 19. Rxc8 {[%clk
0:02:12.2]} 19... Rxc8 {[%clk 0:02:35.5]} 20. Qxd4 {[%clk 0:02:11]} 20... Nc5
{[%clk 0:02:26.8]} 21. Rd1 {[%clk 0:01:49.5]} 21... Bd5 {[%clk 0:02:14.6]} 22.
a3 {[%clk 0:01:40.8]} 22... Nb3 {[%clk 0:02:11.6]} 23. Qd3 {[%clk 0:01:27]}
23... Bc4 {[%clk 0:02:04.1]} 24. Qc2 {[%clk 0:01:10.9]} 24... b5 {[%clk
0:01:58.4]} 25. a4 {[%clk 0:01:03]} 25... a6 {[%clk 0:01:57.6]} 26. axb5 {[%clk
0:00:56.2]} 26... axb5 {[%clk 0:01:57.4]} 27. Ne5 {[%clk 0:00:48.7]} 27... Na5
{[%clk 0:01:34.3]} 28. Bxc4 {[%clk 0:00:34.2]} 28... bxc4 {[%clk 0:01:33.3]} 29.
Qa4 {[%clk 0:00:27.4]} 29... Rc5 {[%clk 0:01:21]} 30. Rd7 {[%clk 0:00:20.3]}
30... Qe8 {[%clk 0:01:12.1]} 31. Nxf7+ {[%clk 0:00:17.1]} 31... Kh7 {[%clk
0:01:05.3]} 32. Nd6 {[%clk 0:00:14.4]} 32... Qg6 {[%clk 0:00:34.3]} 33. g3
{[%clk 0:00:07.5]} 33... Rd5 {[%clk 0:00:29.7]} 34. Ra7 {[%clk 0:00:03.8]} 34...
Qb1+ {[%clk 0:00:17.6]} 35. Kg2 {[%clk 0:00:03.6]} 35... Qxb2 {[%clk 0:00:17.2]}
36. Rxa5 {[%clk 0:00:03.4]} 36... Rxd6 {[%clk 0:00:17.2]} 37. Rb5 {[%clk
0:00:02.7]} 37... Qe2 {[%clk 0:00:13.4]} 0-1

[Event "Betsys MČR v online bleskovém šachu 2021"]
[Site "Chess.com"]
[Date "2021.04.17"]
[Round "13"]
[White "Alesbar"]
[Black "Jeff_CZE"]
[Result "0-1"]
[WhiteElo "1605"]
[BlackElo "1809"]
[TimeControl "180+1"]
[EndTime "11:11:21 PDT"]
[Termination "Uživatel Jeff_CZE zvítězil na čas"]

1. Nf3 {[%clk 0:02:58.5]} 1... e6 {[%clk 0:02:59.5]} 2. g3 {[%clk 0:02:58.4]}
2... d5 {[%clk 0:03:00.4]} 3. Bg2 {[%clk 0:02:58.3]} 3... Nf6 {[%clk 0:03:00.9]}
4. O-O {[%clk 0:02:57.9]} 4... Be7 {[%clk 0:03:01.5]} 5. d4 {[%clk 0:02:57.7]}
5... O-O {[%clk 0:03:01.6]} 6. Nbd2 {[%clk 0:02:57.5]} 6... c5 {[%clk
0:02:58.9]} 7. c3 {[%clk 0:02:57.4]} 7... Nc6 {[%clk 0:02:58.5]} 8. Nb3 {[%clk
0:02:54.8]} 8... cxd4 {[%clk 0:02:56.3]} 9. Nbxd4 {[%clk 0:02:54.4]} 9... Qc7
{[%clk 0:02:48]} 10. h3 {[%clk 0:02:47.7]} 10... b6 {[%clk 0:02:44.6]} 11. Bf4
{[%clk 0:02:34.6]} 11... e5 {[%clk 0:02:24.2]} 12. Nxc6 {[%clk 0:02:18.3]} 12...
exf4 {[%clk 0:02:23.4]} 13. Nxe7+ {[%clk 0:02:17.6]} 13... Qxe7 {[%clk
0:02:23.8]} 14. gxf4 {[%clk 0:01:52.8]} 14... Nh5 {[%clk 0:02:16.7]} 15. e3
{[%clk 0:01:51.4]} 15... Bb7 {[%clk 0:02:10.8]} 16. Ne5 {[%clk 0:01:37.8]} 16...
g6 {[%clk 0:01:40.8]} 17. Qg4 {[%clk 0:01:31.4]} 17... Nf6 {[%clk 0:01:29.5]}
18. Qg5 {[%clk 0:01:17.6]} 18... Rae8 {[%clk 0:01:13.8]} 19. Rad1 {[%clk
0:01:11.7]} 19... Qe6 {[%clk 0:01:06.2]} 20. Rd4 {[%clk 0:00:58.5]} 20... Kg7
{[%clk 0:00:59]} 21. Rfd1 {[%clk 0:00:45.7]} 21... h6 {[%clk 0:00:59]} 22. Qg3
{[%clk 0:00:45.7]} 22... Ne4 {[%clk 0:00:53.8]} 23. Bxe4 {[%clk 0:00:35.8]}
23... dxe4 {[%clk 0:00:53.1]} 24. Rd7 {[%clk 0:00:17.3]} 24... Bc8 {[%clk
0:00:48]} 25. Rxa7 {[%clk 0:00:14.7]} 25... Qxh3 {[%clk 0:00:41.8]} 26. Qxh3
{[%clk 0:00:13.3]} 26... Bxh3 {[%clk 0:00:42.7]} 27. Rd6 {[%clk 0:00:12.1]}
27... Bf5 {[%clk 0:00:37.4]} 28. Rxb6 {[%clk 0:00:11.2]} 28... Rd8 {[%clk
0:00:34.1]} 29. Rbb7 {[%clk 0:00:09.3]} 29... Be6 {[%clk 0:00:31.6]} 30. b3
{[%clk 0:00:07.8]} 30... Rd2 {[%clk 0:00:30.3]} 31. Rc7 {[%clk 0:00:05.9]} 31...
g5 {[%clk 0:00:18.9]} 32. fxg5 {[%clk 0:00:05.2]} 32... hxg5 {[%clk 0:00:19.1]}
33. Kg2 {[%clk 0:00:04.3]} 33... Kf6 {[%clk 0:00:14.8]} 34. Nc4 {[%clk
0:00:03.5]} 34... g4 {[%clk 0:00:13.1]} 35. Nxd2 {[%clk 0:00:02.9]} 35... g3
{[%clk 0:00:13.7]} 36. Kxg3 {[%clk 0:00:02.7]} 36... Rg8+ {[%clk 0:00:14.3]} 37.
Kh2 {[%clk 0:00:01.6]} 37... Rh8+ {[%clk 0:00:14.7]} 38. Kg1 {[%clk 0:00:01.4]}
38... Rh6 {[%clk 0:00:15.3]} 0-1

[Event "Betsys MČR v online bleskovém šachu 2021"]
[Site "Chess.com"]
[Date "2021.04.17"]
[Round "13"]
[White "Bohous13"]
[Black "NeumanPetr"]
[Result "0-1"]
[WhiteElo "2239"]
[BlackElo "2477"]
[TimeControl "180+1"]
[EndTime "11:11:22 PDT"]
[Termination "Uživatel NeumanPetr zvítězil na čas"]

1. e4 {[%clk 0:03:00.9]} 1... d6 {[%clk 0:03:00.9]} 2. d4 {[%clk 0:03:00.9]}
2... Nf6 {[%clk 0:03:01.5]} 3. f3 {[%clk 0:03:01.3]} 3... e5 {[%clk 0:03:02.2]}
4. dxe5 {[%clk 0:03:00.8]} 4... dxe5 {[%clk 0:03:03.1]} 5. Qxd8+ {[%clk
0:03:00.8]} 5... Kxd8 {[%clk 0:03:04]} 6. Bc4 {[%clk 0:03:00.8]} 6... Ke8 {[%clk
0:03:04.4]} 7. Nc3 {[%clk 0:03:00.4]} 7... c6 {[%clk 0:03:05]} 8. Be3 {[%clk
0:03:00.5]} 8... Nbd7 {[%clk 0:03:05]} 9. O-O-O {[%clk 0:03:00.1]} 9... Bc5
{[%clk 0:03:05.6]} 10. Bxc5 {[%clk 0:03:00]} 10... Nxc5 {[%clk 0:03:06.5]} 11.
b4 {[%clk 0:02:59.7]} 11... Ne6 {[%clk 0:03:05.3]} 12. Nge2 {[%clk 0:02:58.9]}
12... Ke7 {[%clk 0:03:04.8]} 13. Kb2 {[%clk 0:02:58.4]} 13... a5 {[%clk
0:02:54.5]} 14. a3 {[%clk 0:02:57.6]} 14... Nc7 {[%clk 0:02:49.1]} 15. h4 {[%clk
0:02:42.2]} 15... h5 {[%clk 0:02:45.6]} 16. Rd2 {[%clk 0:02:35.8]} 16... Be6
{[%clk 0:02:44.3]} 17. Bxe6 {[%clk 0:02:34.9]} 17... Nxe6 {[%clk 0:02:44.3]} 18.
Rhd1 {[%clk 0:02:34.3]} 18... Rhd8 {[%clk 0:02:42.2]} 19. Rxd8 {[%clk
0:02:33.4]} 19... Nxd8 {[%clk 0:02:43.1]} 20. Kb3 {[%clk 0:02:28.9]} 20... Ne6
{[%clk 0:02:40.6]} 21. Na4 {[%clk 0:02:17.7]} 21... b5 {[%clk 0:02:36.5]} 22.
Nc5 {[%clk 0:02:14.1]} 22... Nxc5+ {[%clk 0:02:34.4]} 23. bxc5 {[%clk
0:02:13.6]} 23... Nd7 {[%clk 0:02:34]} 24. c4 {[%clk 0:02:03.3]} 24... Nxc5+
{[%clk 0:02:30.7]} 25. Kc3 {[%clk 0:02:03.2]} 25... Rd8 {[%clk 0:02:04.6]} 26.
Rxd8 {[%clk 0:02:02]} 26... Kxd8 {[%clk 0:02:04.4]} 27. cxb5 {[%clk 0:01:56.3]}
27... cxb5 {[%clk 0:02:04.3]} 28. Ng3 {[%clk 0:01:56]} 28... g6 {[%clk 0:02:04]}
29. Nf1 {[%clk 0:01:56.5]} 29... Kc7 {[%clk 0:01:56]} 30. Ne3 {[%clk 0:01:56]}
30... Kc6 {[%clk 0:01:54.6]} 31. Nd5 {[%clk 0:01:53.1]} 31... Ne6 {[%clk
0:01:54.9]} 32. g4 {[%clk 0:01:28.2]} 32... Nf4 {[%clk 0:01:40.3]} 33. Nf6
{[%clk 0:01:10.5]} 33... Kc5 {[%clk 0:01:34]} 34. Nd7+ {[%clk 0:00:59.2]} 34...
Kd6 {[%clk 0:01:33.2]} 35. Nf6 {[%clk 0:00:56.8]} 35... Ke6 {[%clk 0:01:33]} 36.
Ne8 {[%clk 0:00:53.8]} 36... Kd7 {[%clk 0:01:25.9]} 37. Nf6+ {[%clk 0:00:52.4]}
37... Ke7 {[%clk 0:01:25.7]} 38. Ng8+ {[%clk 0:00:35.2]} 38... Ke6 {[%clk
0:01:25.6]} 39. Nh6 {[%clk 0:00:25.5]} 39... Ng2 {[%clk 0:01:17.1]} 40. gxh5
{[%clk 0:00:24.2]} 40... gxh5 {[%clk 0:01:16.4]} 41. Nf5 {[%clk 0:00:23.9]}
41... Nf4 {[%clk 0:01:10.6]} 42. Kb3 {[%clk 0:00:16.9]} 42... Kd7 {[%clk
0:01:08.8]} 43. Kc3 {[%clk 0:00:15.9]} 43... Kc6 {[%clk 0:01:07.1]} 44. Ne7+
{[%clk 0:00:14.9]} 44... Kc5 {[%clk 0:01:06.6]} 45. Nf5 {[%clk 0:00:13.6]} 45...
b4+ {[%clk 0:01:01]} 46. axb4+ {[%clk 0:00:13.7]} 46... axb4+ {[%clk 0:01:01.6]}
47. Kb3 {[%clk 0:00:14.2]} 47... Ne2 {[%clk 0:01:00.7]} 48. Ng7 {[%clk 0:00:12]}
48... Nd4+ {[%clk 0:00:58.2]} 49. Kb2 {[%clk 0:00:12.4]} 49... Nxf3 {[%clk
0:00:56.8]} 50. Nxh5 {[%clk 0:00:12.6]} 50... Nxh4 {[%clk 0:00:55.6]} 51. Nf6
{[%clk 0:00:10.3]} 51... Nf3 {[%clk 0:00:51.6]} 52. Kb3 {[%clk 0:00:07.8]} 52...
Nd2+ {[%clk 0:00:49.2]} 53. Kb2 {[%clk 0:00:07.9]} 53... Kd4 {[%clk 0:00:47.7]}
0-1